fUSD/lending_fUSD_20250213
["ID","MTS","AMOUNT","RATE_DAILY","PERIOD"]
[352916713,1739419848611,-500.0,0.00016438,2]
[352916714,1739419848620,-500.0,0.00016438,2]
[352916715,1739419848630,-500.0,0.00016438,2]
[352916716,1739419848640,-500.0,0.00016438,2]
[352916717,1739419848650,-1089.05,0.00016438,2]
[352916718,1739419848660,-513.50974303,0.00016438,2]
[352916719,1739419848669,-500.0,0.00016438,2]
[352916720,1739419848679,-722.65,0.00016438,2]
[352916721,1739419848689,-500.0,0.00016438,2]
[352916722,1739419848699,-2280.79,0.00016438,2]
[352916723,1739419848709,-1467.32,0.00016438,2]
[352916724,1739419848719,-500.0,0.00016438,2]
[352916725,1739419848728,-292.12294313,0.00016438,2]
[352916726,1739419848738,-702.18,0.00016438,2]
[352916727,1739419848748,-861.36,0.00016438,2]
[352916728,1739419848757,-820.56,0.00016438,2]
[352916729,1739419848767,-500.0,0.00016438,2]
[352916730,1739419848776,-1381.51,0.00016438,2]
[352916731,1739419848786,-576.27,0.00016438,2]
[352916732,1739419848796,-1328.42,0.00016438,2]
[352916733,1739419848806,-500.0,0.00016438,2]
[352916734,1739419848816,-500.0,0.00016438,2]
[352916735,1739419848827,-500.0,0.00016438,2]
[352916736,1739419848837,-1143.54,0.00016438,2]
[352916737,1739419848847,-500.0,0.00016438,2]
[352916738,1739419848857,-380.04841806,0.00016438,2]
[352916739,1739419848868,-780.03,0.00016438,2]
[352916740,1739419848878,-1478.85,0.00016438,2]
[352916741,1739419848888,-500.0,0.00016438,2]
[352916742,1739419848898,-1108.66,0.00016438,2]
[352916743,1739419848908,-849.55,0.00016438,2]
[352916744,1739419848918,-1272.95,0.00016438,2]
[352916745,1739419848929,-500.0,0.00016438,2]
[352916746,1739419848939,-503.82438845,0.00016438,2]
[352916747,1739419848948,-500.0,0.00016438,2]
[352916748,1739419848958,-1289.38,0.00016438,2]
[352916749,1739419848968,-504.81436604,0.00016438,2]
[352916750,1739419848978,-500.0,0.00016438,2]
[352916751,1739419848988,-500.0,0.00016438,2]
[352916752,1739419848999,-500.0,0.00016438,2]
[352916753,1739419849010,-1480.24,0.00016438,2]
[352916754,1739419849022,-500.0,0.00016438,2]
[352916755,1739419849032,-721.41,0.00016438,2]
[352916756,1739419849042,-1204.9,0.00016438,2]
[352916757,1739419849052,-500.0,0.00016438,2]
[352916758,1739419849063,-500.0,0.00016438,2]
[352916759,1739419849074,-500.0,0.00016438,2]
[352916760,1739419849085,-500.0,0.00016438,2]
[352916761,1739419849094,-552.77,0.00016438,2]
[352916762,1739419849105,-500.0,0.00016438,2]
[352916763,1739419849116,-1431.02,0.00016438,2]
[352916764,1739419849127,-1338.98,0.00016438,2]
[352916765,1739419849137,-875.27,0.00016438,2]
[352916766,1739419849148,-500.0,0.00016438,2]
[352916767,1739419849159,-500.0,0.00016438,2]
[352916768,1739419849170,-1278.79,0.00016438,2]
[352916769,1739419849181,-500.0,0.00016438,2]
[352916770,1739419849192,-500.0,0.00016438,2]
[352916771,1739419849203,-500.0,0.00016438,2]
[352916772,1739419849214,-2061.58,0.00016438,2]
[352916773,1739419849225,-500.0,0.00016438,2]
[352916774,1739419849235,-2169.15,0.00016438,2]
[352916775,1739419849245,-500.0,0.00016438,2]
[352916776,1739419849256,-766.92,0.00016438,2]
[352916777,1739419849266,-500.0,0.00016438,2]
[352916778,1739419849276,-1197.82,0.00016438,2]
[352916779,1739419849286,-500.0,0.00016438,2]
[352916780,1739419849296,-669.77,0.00016438,2]
[352916781,1739419849306,-171.753023,0.00016438,2]
[352916782,1739419849316,-709.6,0.00016438,2]
[352916783,1739419849326,-823.42,0.00016438,2]
[352916784,1739419849337,-500.0,0.00016438,2]
[352916785,1739419849346,-506.43391683,0.00016438,2]
[352916786,1739419849356,-1145.42,0.00016438,2]
[352916787,1739419849367,-500.0,0.00016438,2]
[352916788,1739419849376,-506.64031498,0.00016438,2]
[352916789,1739419849388,-500.0,0.00016438,2]
[352916790,1739419849398,-502.84179382,0.00016438,2]
[352916791,1739419849409,-500.0,0.00016438,2]
[352916792,1739419849419,-718.2,0.00016438,2]
[352916793,1739419849429,-1602.25,0.00016438,2]
[352916794,1739419849439,-500.0,0.00016438,2]
[352916795,1739419849449,-500.0,0.00016438,2]
[352916796,1739419849460,-500.0,0.00016438,2]
[352916797,1739419849475,-1902.13,0.00016438,2]
[352916798,1739419849485,-500.0,0.00016438,2]
[352916799,1739419849495,-156.097169,0.00016438,2]
[352916800,1739419849505,-167.07930069,0.00016438,2]
[352916801,1739419849516,-500.0,0.00016438,2]
[352916802,1739419849526,-500.0,0.00016438,2]
[352916803,1739419849536,-505.774024,0.00016438,2]
[352916804,1739419849546,-500.0,0.00016438,2]
[352916805,1739419849556,-500.0,0.00016438,2]
[352916806,1739419849566,-1340.09,0.00016438,2]
[352916807,1739419849576,-500.0,0.00016438,2]
[352916808,1739419849586,-500.0,0.00016438,2]
[352916809,1739419849596,-509.37644795,0.00016438,2]
[352916810,1739419849606,-1164.82,0.00016438,2]
[352916811,1739419849616,-504.76491382,0.00016438,2]
[352916812,1739419849626,-1452.78,0.00016438,2]
[352916813,1739419849637,-500.0,0.00016438,2]
[352916814,1739419849647,-2237.11,0.00016438,2]
[352916815,1739419849656,-1307.46,0.00016438,2]
[352916816,1739419849666,-500.0,0.00016438,2]
[352916817,1739419849676,-602.77,0.00016438,2]
[352916818,1739419849686,-5177.14,0.00016438,2]
[352916819,1739419849697,-1481.19,0.00016438,2]
[352916820,1739419849707,-500.0,0.00016438,2]
[352916821,1739419849717,-500.0,0.00016438,2]
[352916822,1739419849726,-597.73,0.00016438,2]
[352916823,1739419849736,-500.0,0.00016438,2]
[352916824,1739419849746,-1935.34,0.00016438,2]
[352916825,1739419849756,-500.0,0.00016438,2]
[352916826,1739419849766,-500.0,0.00016438,2]
[352916827,1739419849778,-500.0,0.00016438,2]
[352916828,1739419849788,-863.55,0.00016438,2]
[352916829,1739419849799,-1983.97,0.00016438,2]
[352916830,1739419849809,-500.0,0.00016438,2]
[352916831,1739419849819,-2218.91,0.00016438,2]
[352916832,1739419849828,-500.0,0.00016438,2]
[352916833,1739419849838,-500.0,0.00016438,2]
[352916834,1739419849847,-500.0,0.00016438,2]
[352916835,1739419849857,-500.0,0.00016438,2]
[352916836,1739419849867,-898.38,0.00016438,2]
[352916837,1739419849877,-2069.98,0.00016438,2]
[352916838,1739419849887,-504.5541286,0.00016438,2]
[352916839,1739419849897,-904.41,0.00016438,2]
[352916840,1739419849907,-811.05,0.00016438,2]
[352916841,1739419849917,-1135.4,0.00016438,2]
[352916842,1739419849927,-500.0,0.00016438,2]
[352916843,1739419849936,-2813.96,0.00016438,2]
[352916844,1739419849946,-1460.53,0.00016438,2]
[352916845,1739419849957,-500.0,0.00016438,2]
[352916846,1739419849967,-500.0,0.00016438,2]
[352916847,1739419849977,-500.0,0.00016438,2]
[352916848,1739419849987,-2173.98,0.00016438,2]
[352916849,1739419849997,-1078.15,0.00016438,2]
[352916850,1739419850007,-638.62,0.00016438,2]
[352916851,1739419850017,-2827.15,0.00016438,2]
[352916852,1739419850028,-1368.87,0.00016438,2]
[352916853,1739419850038,-513.44129984,0.00016438,2]
[352916854,1739419850049,-500.0,0.00016438,2]
[352916855,1739419850059,-650.45,0.00016438,2]
[352916856,1739419850068,-509.80944608,0.00016438,2]
[352916857,1739419850078,-500.0,0.00016438,2]
[352916858,1739419850088,-1438.05,0.00016438,2]
[352916859,1739419850098,-2025.98,0.00016438,2]
[352916860,1739419850108,-1160.75,0.00016438,2]
[352916861,1739419850117,-500.0,0.00016438,2]
[352916862,1739419850127,-500.0,0.00016438,2]
[352916863,1739419850137,-526.61,0.00016438,2]
[352916864,1739419850148,-500.0,0.00016438,2]
[352916865,1739419850157,-2197.21,0.00016438,2]
[352916866,1739419850167,-905.97,0.00016438,2]
[352916867,1739419850177,-500.0,0.00016438,2]
[352916868,1739419850186,-2813.11,0.00016438,2]
[352916869,1739419850196,-1889.19,0.00016438,2]
[352916870,1739419850205,-500.0,0.00016438,2]
[352916871,1739419850215,-2504.33,0.00016438,2]
[352916872,1739419850226,-1938.63,0.00016438,2]
[352916873,1739419850236,-980.59,0.00016438,2]
[352916874,1739419850246,-2156.89,0.00016438,2]
[352916875,1739419850256,-511.33121521,0.00016438,2]
[352916876,1739419850267,-1563.05,0.00016438,2]
[352916877,1739419850277,-1426.42,0.00016438,2]
[352916878,1739419850287,-500.0,0.00016438,2]
[352916879,1739419850296,-1939.13,0.00016438,2]
[352916880,1739419850306,-1683.84,0.00016438,2]
[352916881,1739419850316,-951.71,0.00016438,2]
[352916882,1739419850326,-2444.49,0.00016438,2]
[352916883,1739419850335,-500.0,0.00016438,2]
[352916884,1739419850345,-500.0,0.00016438,2]
[352916885,1739419850355,-500.0,0.00016438,2]
[352916886,1739419850364,-500.0,0.00016438,2]
[352916887,1739419850375,-500.0,0.00016438,2]
[352916888,1739419850384,-500.0,0.00016438,2]
[352916889,1739419850394,-3118.27,0.00016438,2]
[352916890,1739419850404,-500.0,0.00016438,2]
[352916891,1739419850414,-910.95,0.00016438,2]
[352916892,1739419850423,-1688.79,0.00016438,2]
[352916893,1739419850434,-500.0,0.00016438,2]
[352916894,1739419850444,-500.0,0.00016438,2]
[352916895,1739419850455,-2919.29,0.00016438,2]
[352916896,1739419850469,-1535.02,0.00016438,2]
[352916897,1739419850479,-1590.81,0.00016438,2]
[352916898,1739419850488,-1885.35,0.00016438,2]
[352916899,1739419850497,-1998.67,0.00016438,2]
[352916900,1739419850508,-500.0,0.00016438,2]
[352916901,1739419850519,-154.64664499,0.00016438,2]
[352916902,1739419850529,-2454.14,0.00016438,2]
[352916903,1739419850539,-500.0,0.00016438,2]
[352916904,1739419850549,-1999.52,0.00016438,2]
[352916905,1739419850558,-681.16,0.00016438,2]
[352916906,1739419850568,-1257.83,0.00016438,2]
[352916907,1739419850578,-2064.08,0.00016438,2]
[352916908,1739419850587,-500.0,0.00016438,2]
[352916909,1739419850596,-500.0,0.00016438,2]
[352916910,1739419850606,-500.0,0.00016438,2]
[352916911,1739419850616,-1513.7,0.00016438,2]
[352916912,1739419850626,-993.06,0.00016438,2]
[352916913,1739419850636,-500.0,0.00016438,2]
[352916914,1739419850646,-3124.21,0.00016438,2]
[352916915,1739419850655,-2020.18,0.00016438,2]
[352916916,1739419850666,-3493.32,0.00016438,2]
[352916917,1739419850675,-500.0,0.00016438,2]
[352916918,1739419850685,-1222.4,0.00016438,2]
[352916919,1739419850695,-1104.21,0.00016438,2]
[352916920,1739419850704,-3051.11,0.00016438,2]
[352916921,1739419850714,-500.0,0.00016438,2]
[352916922,1739419850723,-500.0,0.00016438,2]
[352916923,1739419850733,-1008.13,0.00016438,2]
[352916924,1739419850742,-500.0,0.00016438,2]
[352916925,1739419850751,-2524.63,0.00016438,2]
[352916926,1739419850761,-836.42,0.00016438,2]
[352916927,1739419850772,-500.0,0.00016438,2]
[352916928,1739419850782,-836.96,0.00016438,2]
[352916929,1739419850791,-500.0,0.00016438,2]
[352916930,1739419850801,-504.30503193,0.00016438,2]
[352916931,1739419850810,-500.0,0.00016438,2]
[352916932,1739419850820,-500.0,0.00016438,2]
[352916933,1739419850829,-798.41,0.00016438,2]
[352916934,1739419850839,-500.0,0.00016438,2]
[352916935,1739419850848,-1081.56,0.00016438,2]
[352916936,1739419850857,-500.0,0.00016438,2]
[352916937,1739419850867,-500.0,0.00016438,2]
[352916938,1739419850876,-1594.0,0.00016438,2]
[352916939,1739419850886,-500.0,0.00016438,2]
[352916940,1739419850896,-1902.97,0.00016438,2]
[352916941,1739419850905,-1436.89,0.00016438,2]
[352916942,1739419850915,-2795.33,0.00016438,2]
[352916943,1739419850924,-500.0,0.00016438,2]
[352916944,1739419850933,-506.18765232,0.00016438,2]
[352916945,1739419850943,-1454.88,0.00016438,2]
[352916946,1739419850953,-1444.32,0.00016438,2]
[352916947,1739419850962,-507.36480289,0.00016438,2]
[352916948,1739419850972,-3180.76,0.00016438,2]
[352916949,1739419850981,-500.0,0.00016438,2]
[352916950,1739419850990,-500.0,0.00016438,2]
[352916951,1739419850999,-500.0,0.00016438,2]
[352916952,1739419851009,-500.0,0.00016438,2]
[352916953,1739419851018,-867.63,0.00016438,2]
[352916954,1739419851027,-500.0,0.00016438,2]
[352916955,1739419851037,-4453.78,0.00016438,2]
[352916956,1739419851046,-500.0,0.00016438,2]
[352916957,1739419851055,-3125.9,0.00016438,2]
[352916958,1739419851064,-500.0,0.00016438,2]
[352916959,1739419851074,-4084.91,0.00016438,2]
[352916960,1739419851084,-953.08,0.00016438,2]
[352916961,1739419851096,-500.0,0.00016438,2]
[352916962,1739419851108,-500.0,0.00016438,2]
[352916963,1739419851118,-2039.95,0.00016438,2]
[352916964,1739419851129,-974.28,0.00016438,2]
[352916965,1739419851139,-3691.31,0.00016438,2]
[352916966,1739419851149,-500.0,0.00016438,2]
[352916967,1739419851160,-500.0,0.00016438,2]
[352916968,1739419851170,-400.42230282,0.00016438,2]
[352916969,1739419851181,-500.0,0.00016438,2]
[352916970,1739419851191,-2179.75,0.00016438,2]
[352916971,1739419851200,-3414.95,0.00016438,2]
[352916972,1739419851211,-10197.83,0.00016438,2]
[352916973,1739419851221,-11097.05,0.00016438,2]
[352916974,1739419851230,-500.0,0.00016438,2]
[352916975,1739419851240,-509.04845535,0.00016438,2]
[352916976,1739419851249,-500.0,0.00016438,2]
[352916977,1739419851259,-826.75,0.00016438,2]
[352916978,1739419851268,-500.0,0.00016438,2]
[352916979,1739419851277,-500.0,0.00016438,2]
[352916980,1739419851286,-500.0,0.00016438,2]
[352916981,1739419851295,-878.81,0.00016438,2]
[352916982,1739419851305,-500.0,0.00016438,2]
[352916983,1739419851315,-500.0,0.00016438,2]
[352916984,1739419851324,-2530.34,0.00016438,2]
[352916985,1739419851334,-500.0,0.00016438,2]
[352916986,1739419851343,-671.03,0.00016438,2]
[352916987,1739419851353,-1271.16,0.00016438,2]
[352916988,1739419851552,-500.0,0.00016438,2]
[352916989,1739419851562,-505.66433945,0.00016438,2]
[352916990,1739419851571,-5114.23,0.00016438,2]
[352916991,1739419851581,-500.0,0.00016438,2]
[352916992,1739419851590,-2531.0,0.00016438,2]
[352916993,1739419851599,-931.72,0.00016438,2]
[352916994,1739419851608,-500.0,0.00016438,2]
[352916995,1739419851618,-648.63,0.00016438,2]
[352916996,1739419851627,-500.0,0.00016438,2]
[352916997,1739419851636,-1170.25,0.00016438,2]
[352916998,1739419851646,-956.52,0.00016438,2]
[352916999,1739419851655,-2529.53,0.00016438,2]
[352917000,1739419851667,-927.05,0.00016438,2]
[352917001,1739419851676,-2827.43,0.00016438,2]
[352917002,1739419851686,-2199.85,0.00016438,2]
[352917003,1739419851696,-915.4,0.00016438,2]
[352917004,1739419851705,-3740.23,0.00016438,2]
[352917005,1739419851715,-4348.02,0.00016438,2]
[352917006,1739419851730,-500.0,0.00016438,2]
[352917007,1739419851747,-5781.38,0.00016438,2]
[352917008,1739419851757,-1146.09,0.00016438,2]
[352917009,1739419851768,-500.0,0.00016438,2]
[352917010,1739419851777,-2541.62,0.00016438,2]
[352917011,1739419851788,-777.54,0.00016438,2]
[352917012,1739419851797,-500.0,0.00016438,2]
[352917013,1739419851807,-2206.9,0.00016438,2]
[352917014,1739419851820,-4345.1,0.00016438,2]
[352917015,1739419851832,-1200.0,0.00016438,2]
[352917016,1739419851844,-500.0,0.00016438,2]
[352917017,1739419851853,-3655.64,0.00016438,2]
[352917018,1739419851863,-500.0,0.00016438,2]
[352917019,1739419851872,-1674.22,0.00016438,2]
[352917020,1739419851881,-1078.61,0.00016438,2]
[352917021,1739419851897,-1517.22,0.00016438,2]
[352917022,1739419851908,-3316.04,0.00016438,2]
[352917023,1739419851918,-2385.0,0.00016438,2]
[352917024,1739419851928,-2453.26,0.00016438,2]
[352917025,1739419851938,-500.0,0.00016438,2]
[352917026,1739419851948,-5910.64,0.00016438,2]
[352917027,1739419851960,-500.0,0.00016438,2]
[352917028,1739419851971,-2022.98,0.00016438,2]
[352917029,1739419851981,-4841.16,0.00016438,2]
[352917030,1739419851993,-500.0,0.00016438,2]
[352917031,1739419852004,-1153.01,0.00016438,2]
[352917032,1739419852015,-500.0,0.00016438,2]
[352917033,1739419852026,-500.0,0.00016438,2]
[352917034,1739419852036,-500.0,0.00016438,2]
[352917035,1739419852047,-500.0,0.00016438,2]
[352917036,1739419852058,-2258.84,0.00016438,2]
[352917037,1739419852070,-2040.32,0.00016438,2]
[352917038,1739419852080,-500.0,0.00016438,2]
[352917039,1739419852091,-507.57582328,0.00016438,2]
[352917040,1739419852102,-500.0,0.00016438,2]
[352917041,1739419852112,-4408.86,0.00016438,2]
[352917042,1739419852122,-500.0,0.00016438,2]
[352917043,1739419852132,-500.0,0.00016438,2]
[352917044,1739419852143,-500.0,0.00016438,2]
[352917045,1739419852155,-595.26518305,0.00016438,2]
[352917046,1739419852165,-7799.39,0.00016438,2]
[352917047,1739419852176,-500.0,0.00016438,2]
[352917048,1739419852187,-998.91,0.00016438,2]
[352917049,1739419852199,-500.0,0.00016438,2]
[352917050,1739419852210,-1252.36,0.00016438,2]
[352917051,1739419852220,-500.0,0.00016438,2]
[352917052,1739419852231,-500.0,0.00016438,2]
[352917053,1739419852241,-500.0,0.00016438,2]
[352917054,1739419852251,-4668.89,0.00016438,2]
[352917055,1739419852261,-2019.88,0.00016438,2]
[352917056,1739419852271,-686.6,0.00016438,2]
[352917057,1739419852281,-5528.52,0.00016438,2]
[352917058,1739419852291,-500.0,0.00016438,2]
[352917059,1739419852301,-500.0,0.00016438,2]
[352917060,1739419852311,-3560.19,0.00016438,2]
[352917061,1739419852322,-3019.18,0.00016438,2]
[352917062,1739419852331,-500.0,0.00016438,2]
[352917063,1739419852342,-2010.24,0.00016438,2]
[352917064,1739419852353,-923.31,0.00016438,2]
[352917065,1739419852363,-500.0,0.00016438,2]
[352917066,1739419852372,-2983.89,0.00016438,2]
[352917067,1739419852382,-951.57,0.00016438,2]
[352917068,1739419852392,-500.0,0.00016438,2]
[352917069,1739419852402,-504.34155753,0.00016438,2]
[352917070,1739419852417,-4467.57,0.00016438,2]
[352917071,1739419852427,-1099.64,0.00016438,2]
[352917072,1739419852437,-942.39,0.00016438,2]
[352917073,1739419852448,-3330.46,0.00016438,2]
[352917074,1739419852457,-1618.32,0.00016438,2]
[352917075,1739419852469,-3545.51,0.00016438,2]
[352917076,1739419852481,-510.3544669,0.00016438,2]
[352917077,1739419852491,-1118.75,0.00016438,2]
[352917078,1739419852501,-500.0,0.00016438,2]
[352917079,1739419852511,-1253.53,0.00016438,2]
[352917080,1739419852522,-500.0,0.00016438,2]
[352917081,1739419852532,-932.28,0.00016438,2]
[352917082,1739419852542,-5647.81,0.00016438,2]
[352917083,1739419852553,-500.0,0.00016438,2]
[352917084,1739419852564,-750.4,0.00016438,2]
[352917085,1739419852574,-1291.12,0.00016438,2]
[352917086,1739419852585,-976.41,0.00016438,2]
[352917087,1739419852596,-1763.75,0.00016438,2]
[352917088,1739419852608,-500.0,0.00016438,2]
[352917089,1739419852619,-500.0,0.00016438,2]
[352917090,1739419852629,-886.99,0.00016438,2]
[352917091,1739419852640,-4818.64,0.00016438,2]
[352917092,1739419852650,-500.0,0.00016438,2]
[352917093,1739419852660,-500.0,0.00016438,2]
[352917094,1739419852670,-1363.23,0.00016438,2]
[352917095,1739419852682,-542.62,0.00016438,2]
[352917096,1739419852693,-2656.77,0.00016438,2]
[352917097,1739419852705,-500.0,0.00016438,2]
[352917098,1739419852715,-500.0,0.00016438,2]
[352917099,1739419852727,-3313.57,0.00016438,2]
[352917100,1739419852740,-1627.27,0.00016438,2]
[352917101,1739419852751,-500.0,0.00016438,2]
[352917102,1739419852762,-500.0,0.00016438,2]
[352917103,1739419852772,-2792.33,0.00016438,2]
[352917104,1739419852782,-518.54,0.00016438,2]
[352917105,1739419852793,-500.0,0.00016438,2]
[352917106,1739419852805,-710.37,0.00016438,2]
[352917107,1739419852815,-1942.77,0.00016438,2]
[352917108,1739419852827,-1614.18,0.00016438,2]
[352917109,1739419852836,-500.0,0.00016438,2]
[352917110,1739419852848,-905.36,0.00016438,2]
[352917111,1739419852860,-500.0,0.00016438,2]
[352917112,1739419852869,-5439.72,0.00016438,2]
[352917113,1739419852879,-500.0,0.00016438,2]
[352917114,1739419852890,-2211.5,0.00016438,2]
[352917115,1739419852900,-500.0,0.00016438,2]
[352917116,1739419852910,-3628.33,0.00016438,2]
[352917117,1739419852924,-2474.85,0.00016438,2]
[352917118,1739419852933,-500.0,0.00016438,2]
[352917119,1739419852944,-500.0,0.00016438,2]
[352917120,1739419852954,-3150.16,0.00016438,2]
[352917121,1739419852965,-1550.22,0.00016438,2]
[352917122,1739419852974,-500.0,0.00016438,2]
[352917123,1739419852984,-3276.53,0.00016438,2]
[352917124,1739419852994,-500.0,0.00016438,2]
[352917125,1739419853004,-500.0,0.00016438,2]
[352917126,1739419853014,-500.0,0.00016438,2]
[352917127,1739419853025,-500.0,0.00016438,2]
[352917128,1739419853034,-2390.17,0.00016438,2]
[352917129,1739419853044,-500.0,0.00016438,2]
[352917130,1739419853055,-500.0,0.00016438,2]
[352917131,1739419853065,-500.0,0.00016438,2]
[352917132,1739419853076,-1388.87,0.00016438,2]
[352917133,1739419853086,-578.3,0.00016438,2]
[352917134,1739419853095,-1631.76,0.00016438,2]
[352917135,1739419853106,-2574.37,0.00016438,2]
[352917136,1739419853115,-2700.09,0.00016438,2]
[352917137,1739419853125,-500.0,0.00016438,2]
[352917138,1739419853135,-500.0,0.00016438,2]
[352917139,1739419853145,-500.0,0.00016438,2]
[352917140,1739419853155,-1168.92,0.00016438,2]
[352917141,1739419853164,-646.0,0.00016438,2]
[352917142,1739419853174,-500.0,0.00016438,2]
[352917143,1739419853184,-4204.04,0.00016438,2]
[352917144,1739419853194,-2829.43,0.00016438,2]
[352917145,1739419853203,-666.43,0.00016438,2]
[352917146,1739419853213,-500.0,0.00016438,2]
[352917147,1739419853223,-796.25,0.00016438,2]
[352917148,1739419853233,-500.0,0.00016438,2]
[352917149,1739419853243,-1175.24,0.00016438,2]
[352917150,1739419853253,-4062.78,0.00016438,2]
[352917151,1739419853262,-500.0,0.00016438,2]
[352917152,1739419853274,-1086.18,0.00016438,2]
[352917153,1739419853284,-500.0,0.00016438,2]
[352917154,1739419853293,-2258.23,0.00016438,2]
[352917155,1739419853303,-6270.07,0.00016438,2]
[352917156,1739419853313,-768.66,0.00016438,2]
[352917157,1739419853323,-1184.35,0.00016438,2]
[352917158,1739419853332,-2170.98,0.00016438,2]
[352917159,1739419853343,-1140.43,0.00016438,2]
[352917160,1739419853354,-500.0,0.00016438,2]
[352917161,1739419853364,-500.0,0.00016438,2]
[352917162,1739419853374,-7326.45,0.00016438,2]
[352917163,1739419853384,-359.40917066,0.00016438,2]
[352917164,1739419853394,-2319.47,0.00016438,2]
[352917165,1739419853404,-500.0,0.00016438,2]
[352917166,1739419853414,-500.0,0.00016438,2]
[352917167,1739419853424,-1719.41,0.00016438,2]
[352917168,1739419853433,-1311.95,0.00016438,2]
[352917169,1739419853443,-500.0,0.00016438,2]
[352917170,1739419853452,-500.0,0.00016438,2]
[352917171,1739419853462,-1168.52,0.00016438,2]
[352917172,1739419853474,-2582.78,0.00016438,2]
[352917173,1739419853483,-3206.21,0.00016438,2]
[352917174,1739419853493,-500.0,0.00016438,2]
[352917175,1739419853503,-505.19088532,0.00016438,2]
[352917176,1739419853514,-3345.53,0.00016438,2]
[352917177,1739419853524,-1098.52,0.00016438,2]
[352917178,1739419853534,-500.0,0.00016438,2]
[352917179,1739419853544,-4369.21,0.00016438,2]
[352917180,1739419853555,-1827.9,0.00016438,2]
[352917181,1739419853566,-541.24,0.00016438,2]
[352917182,1739419853575,-500.0,0.00016438,2]
[352917183,1739419853593,-500.0,0.00016438,2]
[352917184,1739419853609,-498.25,0.00016438,2]
[352917185,1739419853619,-213.86686029,0.00016438,2]
[352917186,1739419853629,-158.81172693,0.0001644,2]
[352917187,1739419853640,-158.81172693,0.0001644,2]
[352917188,1739419853650,-158.81172693,0.0001644,2]
[352917189,1739419853660,-158.81172693,0.0001644,2]
[352917190,1739419853670,-158.81172693,0.0001644,2]
[352917191,1739419853680,-158.81172693,0.0001644,2]
[352917192,1739419853690,-158.81172693,0.0001644,2]
[352917193,1739419853701,-158.81172693,0.0001644,2]
[352917194,1739419853711,-158.81172693,0.0001644,2]
[352917195,1739419853721,-158.81172693,0.0001644,2]
[352917196,1739419853732,-158.81172693,0.0001644,2]
[352917197,1739419853743,-158.81172693,0.0001644,2]
[352917198,1739419853753,-158.81172693,0.0001644,2]
[352917199,1739419853763,-158.81172693,0.0001644,2]
[352917200,1739419853774,-158.81172693,0.0001644,2]
[352917201,1739419853784,-158.81,0.0001644,2]
[352917202,1739419853794,-155.07307129,0.0001644,2]
[352917203,1739419853804,-155.07307129,0.0001644,2]
[352917204,1739419853814,-155.07307129,0.0001644,2]
[352917205,1739419853824,-155.07307129,0.0001644,2]
[352917206,1739419853834,-155.07307129,0.0001644,2]
[352917207,1739419853845,-155.07307129,0.0001644,2]
[352917208,1739419853855,-155.07307129,0.0001644,2]
[352917209,1739419853866,-155.07307129,0.0001644,2]
[352917210,1739419853876,-155.07307129,0.0001644,2]
[352917211,1739419853886,-155.07307129,0.0001644,2]
[352917212,1739419853897,-155.07307129,0.0001644,2]